{"text_format":"3","workbook":"xlsx","n_sheets":4,"sheets":["Рух коштів","Щомісячний дохід","Щомісячні витрати","ДАНІ ДІАГРАМИ"],"not_rendered":{"charts":1,"defined_names":10},"read":"whole","date_system":"1900"}

{"sheet":"Рух коштів","index":0,"n_rows":9,"n_cols":5,"rows_kept":9}
[null,"Назва"]
[null,"Сімейний бюджет"]
[null,{"$f":"TEXT(TODAY(),\"mmmm\")","v":"Січень"}]
[null,{"$f":"YEAR(TODAY())","v":2017}]
[null,"Примітка. Таблиця руху коштів обчислюється автоматично на основі значень на аркушах щомісячного доходу та щомісячних витрат"]
[null,"Рух коштів","Прогнозовано","Фактично","Відхилення"]
[null,"Сумарний дохід",{"$f":"Дохід[[#Totals],[Прогнозовано]]","v":{"v":5700,"d":"5,700"}},{"$f":"Дохід[[#Totals],[Фактично]]","v":{"v":5500,"d":"5,500"}},{"$f":"Дохід[[#Totals],[Відхилення]]","v":-200}]
[null,"Сумарні витрати",{"$f":"Витрати[[#Totals],[Прогнозовано]]","v":{"v":3603,"d":"3,603"}},{"$f":"Витрати[[#Totals],[Фактично]]","v":{"v":3655,"d":"3,655"}},{"$f":"Витрати[[#Totals],[Відхилення]]","v":-52}]
[null,"Усього грошових коштів",{"$f":"C7-C8","v":{"v":2097,"d":"2,097"}},{"$f":"D7-D8","v":{"v":1845,"d":"1,845"}},{"$f":"SUBTOTAL(109,Рух_коштів[Відхилення])","v":-252}]

{"sheet":"Щомісячний дохід","index":1,"n_rows":9,"n_cols":5,"rows_kept":9}
[null,{"$f":"Назва","v":"Назва"}]
[null,{"$f":"Заголовок_бюджету","v":"Сімейний бюджет"}]
[null,{"$f":"Місяць","v":"Січень"}]
[null,{"$f":"Рік","v":2017}]
[null,"Щомісячний дохід","Прогнозовано","Фактично","Відхилення"]
[null,"Дохід 1",{"v":4000,"d":"4,000"},{"v":4000,"d":"4,000"},{"$f":"Дохід[[#This Row],[Фактично]]-Дохід[[#This Row],[Прогнозовано]]","v":0}]
[null,"Дохід 2",{"v":1400,"d":"1,400"},{"v":1500,"d":"1,500"},{"$f":"Дохід[[#This Row],[Фактично]]-Дохід[[#This Row],[Прогнозовано]]","v":100}]
[null,"Інший дохід",300,0,{"$f":"Дохід[[#This Row],[Фактично]]-Дохід[[#This Row],[Прогнозовано]]","v":-300}]
[null,"Сумарний дохід",{"$f":"SUBTOTAL(109,Дохід[Прогнозовано])","v":{"v":5700,"d":"5,700"}},{"$f":"SUBTOTAL(109,Дохід[Фактично])","v":{"v":5500,"d":"5,500"}},{"$f":"SUBTOTAL(109,Дохід[Відхилення])","v":-200}]

{"sheet":"Щомісячні витрати","index":2,"n_rows":26,"n_cols":5,"rows_kept":26}
[null,{"$f":"Назва","v":"Назва"}]
[null,{"$f":"Заголовок_бюджету","v":"Сімейний бюджет"}]
[null,{"$f":"Місяць","v":"Січень"}]
[null,{"$f":"Рік","v":2017}]
[null,"Щомісячні витрати","Прогнозовано","Фактично","Відхилення"]
[null,"Житло",{"v":1500,"d":"1,500"},{"v":1500,"d":"1,500"},{"$f":"Витрати[[#This Row],[Прогнозовано]]-Витрати[[#This Row],[Фактично]]","v":0}]
[null,"Продукти",250,280,{"$f":"Витрати[[#This Row],[Прогнозовано]]-Витрати[[#This Row],[Фактично]]","v":-30}]
[null,"Телефон",38,38,{"$f":"Витрати[[#This Row],[Прогнозовано]]-Витрати[[#This Row],[Фактично]]","v":0}]
[null,"Електроенергія й газ",65,78,{"$f":"Витрати[[#This Row],[Прогнозовано]]-Витрати[[#This Row],[Фактично]]","v":-13}]
[null,"Вода, каналізація, сміття",25,21,{"$f":"Витрати[[#This Row],[Прогнозовано]]-Витрати[[#This Row],[Фактично]]","v":4}]
[null,"Кабельне телебачення",75,83,{"$f":"Витрати[[#This Row],[Прогнозовано]]-Витрати[[#This Row],[Фактично]]","v":-8}]
[null,"Інтернет",60,60,{"$f":"Витрати[[#This Row],[Прогнозовано]]-Витрати[[#This Row],[Фактично]]","v":0}]
[null,"Обслуговування й ремонт",0,60,{"$f":"Витрати[[#This Row],[Прогнозовано]]-Витрати[[#This Row],[Фактично]]","v":-60}]
[null,"Догляд за дітьми",180,150,{"$f":"Витрати[[#This Row],[Прогнозовано]]-Витрати[[#This Row],[Фактично]]","v":30}]
[null,"Навчання",250,250,{"$f":"Витрати[[#This Row],[Прогнозовано]]-Витрати[[#This Row],[Фактично]]","v":0}]
[null,"Домашні тварини",75,80,{"$f":"Витрати[[#This Row],[Прогнозовано]]-Витрати[[#This Row],[Фактично]]","v":-5}]
[null,"Транспорт",280,260,{"$f":"Витрати[[#This Row],[Прогнозовано]]-Витрати[[#This Row],[Фактично]]","v":20}]
[null,"Догляд за собою",75,65,{"$f":"Витрати[[#This Row],[Прогнозовано]]-Витрати[[#This Row],[Фактично]]","v":10}]
[null,"Страхування",255,255,{"$f":"Витрати[[#This Row],[Прогнозовано]]-Витрати[[#This Row],[Фактично]]","v":0}]
[null,"Кредитні картки",100,100,{"$f":"Витрати[[#This Row],[Прогнозовано]]-Витрати[[#This Row],[Фактично]]","v":0}]
[null,"Кредити",0,0,{"$f":"Витрати[[#This Row],[Прогнозовано]]-Витрати[[#This Row],[Фактично]]","v":0}]
[null,"Податки",0,0,{"$f":"Витрати[[#This Row],[Прогнозовано]]-Витрати[[#This Row],[Фактично]]","v":0}]
[null,"Подарунки та благодійність",150,150,{"$f":"Витрати[[#This Row],[Прогнозовано]]-Витрати[[#This Row],[Фактично]]","v":0}]
[null,"Заощадження",225,225,{"$f":"Витрати[[#This Row],[Прогнозовано]]-Витрати[[#This Row],[Фактично]]","v":0}]
[null,"Інше",0,0,{"$f":"Витрати[[#This Row],[Прогнозовано]]-Витрати[[#This Row],[Фактично]]","v":0}]
[null,"Усього",{"$f":"SUBTOTAL(109,Витрати[Прогнозовано])","v":{"v":3603,"d":"3,603"}},{"$f":"SUBTOTAL(109,Витрати[Фактично])","v":{"v":3655,"d":"3,655"}},{"$f":"SUBTOTAL(109,Витрати[Відхилення])","v":-52}]

{"sheet":"ДАНІ ДІАГРАМИ","index":3,"n_rows":6,"n_cols":4,"rows_kept":6,"hidden":true}
[null,"ДАНІ ДІАГРАМИ"]
[]
[null,null,"Прогнозовано","Фактично"]
[null,"Рух коштів",{"$f":"Рух_коштів[[#Totals],[Прогнозовано]]","v":2097},{"$f":"Рух_коштів[[#Totals],[Фактично]]","v":1845}]
[null,"Щомісячний дохід",{"$f":"Дохід[[#Totals],[Прогнозовано]]","v":5700},{"$f":"Дохід[[#Totals],[Фактично]]","v":5500}]
[null,"Щомісячні витрати",{"$f":"Витрати[[#Totals],[Прогнозовано]]","v":3603},{"$f":"Витрати[[#Totals],[Фактично]]","v":3655}]